Cogmind - Beta 12 @@@ ROGUE MODE // 2023.06.27 @ 01:13:23 Player: turtleman65 Result: Destroyed by G-34 Mercenary with Small Laser Performance ------------- Evolutions (1) 500 Regions Visited (3) 600 Robots Destroyed (18) 90 Value Destroyed (605) 605 Prototype IDs (0) 0 Alien Tech Used (0) 0 Bonus (0) 0 TOTAL SCORE: 1795 Bonus ------- None Cogmind --------- Core Integrity 0/400 Matter 300/300 Energy 100/100 System Corruption 2% Temperature Cool (21) Movement Core (200) Ox3 Location -9/Storage Parts ------- > --- POWER (1) -------- (None) > --- PROPULSION (4) --- (None) > --- UTILITY (2) ------ Medium Storage Unit Improved Targeting Computer > --- WEAPON (2) ------- (None) > --- INVENTORY (10) --- Heat Sink Heat Sink Visual Processing Unit Power Shielding Improved Utility Shielding Weapon Shielding Reactive Plating Reactive Plating Peak State ------------ > --- POWER ------------ Ion Engine > --- PROPULSION ------- Aluminum Leg Improved Aluminum Leg Improved Aluminum Leg Improved Aluminum Leg > --- UTILITY ---------- Medium Storage Unit Improved Targeting Computer > --- WEAPON ----------- Particle Gun Particle Gun > --- INVENTORY -------- Heat Sink Visual Processing Unit Power Shielding Improved Utility Shielding Weapon Shielding Reactive Plating Small Laser [Rating: 16] Favorites ----------- Power Ion Engine Engine Ion Engine Propulsion Improved Aluminum Leg Leg Improved Aluminum Leg Utility Improved Targeting Computer Device Heat Sink Storage Medium Storage Unit Processor Improved Targeting Computer Weapon Particle Gun Energy Gun Particle Gun Ballistic Gun Assault Rifle Build | -11 -10 -9 -9 ------- Run | Jun Mat Mat Sto Slots Evolved 2 | . . 2 . Power . | . . . . Propulsion 2 | . . 2 . Utility . | . . . . Weapon . | . . . . Parts Attached 20 | 5 11 3 1 Power 3 | 1 1 . 1 Engine 3 | 1 1 . 1 Core . | . . . . Reactor . | . . . . Propulsion 7 | 2 3 2 . Treads . | . . . . Leg 7 | 2 3 2 . Wheel . | . . . . Hover . | . . . . Flight . | . . . . Utility 5 | . 5 . . Device 1 | . 1 . . Storage 1 | . 1 . . Processor 3 | . 3 . . Hackware . | . . . . Protection . | . . . . Artifact . | . . . . Weapon 5 | 2 2 1 . Energy Gun 4 | 1 2 1 . Energy Cannon . | . . . . Ballistic Gun 1 | 1 . . . Ballistic Cannon . | . . . . Launcher . | . . . . Special Weapon . | . . . . Impact Weapon . | . . . . Slashing Weapon . | . . . . Piercing Weapon . | . . . . Special Melee Weapon . | . . . . Unidentified Prototypes . | . . . . Parts Lost 9 | . . 2 7 Power 2 | . . 1 1 Propulsion 4 | . . . 4 Utility . | . . . . Weapon 3 | . . 1 2 Highest Loss Streak 7 | . . 1 7 To Critical Strikes . | . . . . Average Slot Usage (%) 95 | . 99 97 69 Engine 12 | . 14 11 1 Leg 32 | . 28 44 31 Device 1 | . 1 . . Storage 4 | . . 11 11 Processor 19 | . 24 11 11 Energy Gun 20 | . 21 20 14 Ballistic Gun 4 | . 6 . . Naked Turns . | . . . . Heaviest Build 21 | 8 21 21 17 Greatest Support 49 | 20 26 49 49 Greatest Overweight (x) 5 | . . . 5 Average Overweight (x) . | . . . . Largest Inventory Capacity 10 | 5 10 10 10 Average Capacity 6 | 5 5 10 10 Most Carried 9 | 2 6 8 9 Average Carried 3 | . 2 6 8 Final Capacity 10 | 5 10 10 10 Final Carried 8 | . 6 8 8 Class Distribution -------------------- 82% | Mutant 17% | Scavenger-Mutant Dominant Class ---------------- Mutant | -10/Materials Mutant | -9/Materials Mutant | -9/Storage Resources | -11 -10 -9 -9 ----------- Run | Jun Mat Mat Sto Matter Collected 445 | 185 209 45 6 Remotely . | . . . . Salvage Created 708 | . 416 147 145 Parts 39 | . 27 6 6 Haulers Intercepted 1 | . . 1 . Recyclers Shooed . | . . . . Parts Field Recycled . | . . . . Retrieved Matter . | . . . . Parts Self-Destructed . | . . . . Prevented . | . . . . Kills | -11 -10 -9 -9 ------- Run | Jun Mat Mat Sto Combat Hostiles Destroyed 15 | . 9 3 3 Guns 15 | . 9 3 3 Classes Destroyed 4 | . 2 1 1 Hauler 1 | . . 1 . Watcher 2 | . 2 . . Grunt 13 | . 9 3 1 Sentry 2 | . . . 2 Best Kill Streak 3 | . 3 3 3 Combat Bots Only 3 | . 3 3 3 Max Kills in Single Turn 1 | . 1 1 1 Gunslinging . | . . . . Exploded . | . . . . Melee . | . . . . Uniques/NPCs Destroyed . | . . . . Combat | -11 -10 -9 -9 -------- Run | Jun Mat Mat Sto Damage Taken 1379 | . 359 316 704 Core 489 | . 81 73 335 Absorbed by Shields . | . . . . Regen/Repaired (Parts) 35 | . 35 . . Core Remaining (%) 83 | 100 67 . . Volleys Fired 58 | . 30 13 15 Largest 2 | . 2 2 2 Hottest 130 | . 130 130 105 Shots Fired 102 | . 60 22 20 Gun 102 | . 60 22 20 Cannon . | . . . . Launcher . | . . . . Special . | . . . . Kinetic 18 | . 18 . . Thermal 84 | . 42 22 20 Explosive . | . . . . Electromagnetic . | . . . . Robot Hit Streak 15 | . 15 9 15 Robot Miss Streak 3 | . 3 1 1 Penetration Max . | . . . . Secondary Targets 1 | . . . 1 Max Gunslinging Chain 1 | . . . 1 Shots Hit Robots 84 | . 47 18 19 Core Hits 34 | . 19 7 8 Critical Kills . | . . . . Critical Parts Destroyed . | . . . . Critical Strikes 2 | . . 2 . Burn 2 | . . 2 . Melee Attacks . | . . . . Impact . | . . . . Slashing . | . . . . Piercing . | . . . . Sneak Attacks . | . . . . Combat Hostiles . | . . . . Follow-up Attacks . | . . . . Damage Inflicted 1142 | . 631 275 236 Guns 1141 | . 631 275 235 Cannons . | . . . . Explosions . | . . . . Melee . | . . . . Ramming 1 | . . . 1 Kinetic 223 | . 223 . . Thermal 918 | . 408 275 235 Explosive . | . . . . Electromagnetic . | . . . . Impact . | . . . . Slashing . | . . . . Piercing . | . . . . Highest Corruption 2 | . . . 2 Average Corruption 2 | . . . 2 Corruption Purged . | . . . . Corruption Blocked . | . . . . Overload Shots . | . . . . Overflow Damage . | . . . . Projectiles . | . . . . Explosions . | . . . . Melee . | . . . . Knockbacks . | . . . . Impact . | . . . . Kinetic . | . . . . Secondary . | . . . . Self-Inflicted Damage . | . . . . Shots . | . . . . Rammed 1 | . . . 1 Targets Rammed 1 | . . . 1 Kicked . | . . . . Crushed . | . . . . Highest Temperature 438 | . 438 359 141 Average Temperature 111 | . 102 151 82 Received Heat Transfer 660 | . 201 174 285 Effects 2 | . 1 1 . Shutdowns 2 | . 1 1 . Siege Activations . | . . . . Robots Corrupted . | . . . . Combat Hostiles . | . . . . Parts Fried . | . . . . Impact Corruptions . | . . . . Robots Melted . | . . . . Combat Hostiles . | . . . . Parts Melted 2 | . . . 2 Heat Transferred 2304 | . 990 791 523 Parts Sabotaged . | . . . . Parts Stolen . | . . . . Parts Stripped . | . . . . Power Chain Reactions . | . . . . Missiles Intercepted . | . . . . Alert | -11 -10 -9 -9 ------- Run | Jun Mat Mat Sto Peak Influence 193 | . 193 121 121 Initial 46 | . . 45 46 Average 78 | . 88 77 70 Maximum Alert Level . | . . . . Low Security (%) 100 | 100 100 100 100 Level 1 . | . . . . Level 2 . | . . . . Level 3 . | . . . . Level 4 . | . . . . Level 5 . | . . . . High Security . | . . . . Max Security . | . . . . Squads Dispatched 5 | . 3 . 2 Investigation 1 | . 1 . . Extermination . | . . . . Reinforcement 3 | . 2 . 1 Assault . | . . . . Garrison 1 | . . . 1 Intercept . | . . . . Searches Triggered . | . . . . Construction Impeded . | . . . . Haulers Reinforced . | . . . . Active Scanning Responses . | . . . . Cargo Convoy Interrupts . | . . . . Stealth | -11 -10 -9 -9 --------- Run | Jun Mat Mat Sto Distress Signals 2 | . 1 . 1 Communications Jammed . | . . . . Distress Signals . | . . . . Times Spotted 34 | . 16 7 11 Peak Tracking Total 7 | . 3 4 7 Tactical Retreats . | . . . . Traps | -11 -10 -9 -9 ------- Run | Jun Mat Mat Sto Traps Triggered 1 | . 1 . . Indirectly . | . . . . Trap Hack Attempts . | . . . . Triggered . | . . . . Disarmed . | . . . . Reprogrammed . | . . . . Reused . | . . . . Traps Extracted . | . . . . Installed . | . . . . Triggered . | . . . . Machines | -11 -10 -9 -9 ---------- Run | Jun Mat Mat Sto Machines Disabled . | . . . . Max in Single Turn . | . . . . Machines Repaired . | . . . . Machines Sabotaged . | . . . . Overloaded Fab Kills . | . . . . Hacking | -11 -10 -9 -9 --------- Run | Jun Mat Mat Sto Machines Accessed 5 | . 3 2 . Terminals 4 | . 2 2 . Fabricators . | . . . . Repair Stations 1 | . 1 . . Recycling Units . | . . . . Scanalyzers . | . . . . Garrison Access . | . . . . Total Hacks 12 | . 7 5 . Successful 7 | . 4 3 . Failed 5 | . 3 2 . Catastrophic . | . . . . Database Lockouts . | . . . . Manual . | . . . . Terminals 9 | . 4 5 . Fabricators . | . . . . Repair Stations 3 | . 3 . . Recycling Units . | . . . . Scanalyzers . | . . . . Garrison Access . | . . . . Terminal Hacks 5 | . 2 3 . Record 1 | . 1 . . Robot Analysis 1 | . . 1 . Emergency Access Points 1 | . . 1 . Alert Level 1 | . . 1 . Unreport Threat 1 | . 1 . . Fabricator Hacks . | . . . . Repair Station Hacks 2 | . 2 . . Scan Component 1 | . 1 . . Repair 1 | . 1 . . Recycling Unit Hacks . | . . . . Scanalyzer . | . . . . Garrison Access Hacks . | . . . . Unauthorized Hacks . | . . . . Terminals . | . . . . Fabricators . | . . . . Repair Stations . | . . . . Recycling Units . | . . . . Scanalyzers . | . . . . Garrison Access . | . . . . Data Cores Recovered . | . . . . Used . | . . . . Hacking Detections 4 | . 2 2 . Full Trace Events . | . . . . Feedback Events . | . . . . Feedback Blocked . | . . . . Robot Schematics Acquired . | . . . . Robots Built . | . . . . Authchips . | . . . . Time . | . . . . Total Robot Build Rating . | . . . . Part Schematics Acquired . | . . . . Parts Built . | . . . . Authchips . | . . . . Time . | . . . . Total Part Build Rating . | . . . . Parts Repaired 1 | . 1 . . Time 32 | . 32 . . Parts Recycled . | . . . . Recycled Matter . | . . . . Retrieved Matter . | . . . . Retrieved Components . | . . . . Parts Scanalyzed . | . . . . Part Schematics Acquired . | . . . . Parts Damaged . | . . . . Bothacking | -11 -10 -9 -9 ------------ Run | Jun Mat Mat Sto Used RIF Installer . | . . . . Robots Hacked . | . . . . Non-combat . | . . . . Combat . | . . . . Robot Hacks Applied . | . . . . Relay Couplers Released . | . . . . Fabnet Peak Effective % . | . . . . Robots Rewired . | . . . . Allies Hacked . | . . . . Hacks Repelled . | . . . . Allies | -11 -10 -9 -9 -------- Run | Jun Mat Mat Sto Total Allies . | . . . . Largest Group . | . . . . Highest-Rated Group . | . . . . Highest-Rated Ally . | . . . . Total Orders . | . . . . Ally Attacks . | . . . . Total Damage . | . . . . Kills . | . . . . Allies Corrupted . | . . . . Allies Melted . | . . . . Intel | -11 -10 -9 -9 ------- Run | Jun Mat Mat Sto Robot Analysis Total 1 | . . 1 . Derelict Logs Recovered . | . . . . Drone Launches . | . . . . Drone Recoveries . | . . . . Exploration | -11 -10 -9 -9 ------------- Run | Jun Mat Mat Sto Turns Passed 1009 | 72 620 229 88 Spaces Moved 585 | 45 368 148 24 Core 12 | 8 . . 4 Treads . | . . . . Legs 573 | 37 368 148 20 Wheels . | . . . . Hover . | . . . . Flight . | . . . . Fastest Speed 50 | 50 120 120 120 Average Speed 119 | 107 120 120 137 Slowest Speed 300 | 120 120 120 300 Overloaded Moves . | . . . . Propulsion Burnouts . | . . . . Robots Hopped . | . . . . Cave-ins Triggered . | . . . . Exploration Rate (%) 18 | 3 53 11 7 Regions Visited 3 Branch Regions 1 Pre-discovered Areas . | . . . . Known Exits Taken . | . . . . Unknown Exits Taken 3 | 1 1 1 . Scrap Searched . | . . . . Spaces Dug . | . . . . Terrain Destroyed . | . . . . Melee . | . . . . Projectile . | . . . . AOE . | . . . . Terrain Rammed . | . . . . Walls Destroyed . | . . . . Machines Disabled . | . . . . Actions | -11 -10 -9 -9 --------- Run | Jun Mat Mat Sto Total 794 | 68 492 177 57 Wait 94 | 14 56 9 15 Move 582 | 44 367 147 24 Hop . | . . . . Pick Up 28 | 5 17 5 1 Fast Attach . | . . . . Attach 20 | 5 11 3 1 Detach 3 | . 3 . . Swap . | . . . . Drop 8 | . 8 . . Fire 58 | . 30 13 15 Melee . | . . . . Ram 1 | . . . 1 Kick . | . . . . Crush . | . . . . Escape Stasis . | . . . . Rewire . | . . . . Trap . | . . . . Miscellaneous . | . . . . Route ------- -11/Junkyard -10/Materials (discovered 2 exits: *Mat / [*Min]) -9/Materials -9/Storage History --------- Turn | Location | Event 49 | -11/Junkyard | Discovered new exit (range 13) 73 | -11/Junkyard | Entered Materials 259 | -10/Materials | Discovered new exit (range 16) 310 | -10/Materials | Build established: Mutant 352 | -10/Materials | Repaired Imp. Aluminum Leg? 672 | -10/Materials | Discovered new exit (range 12) 693 | -10/Materials | Entered another Materials area 693 | -9/Materials | Evolved 2 slots: Propulsion x2 732 | -9/Materials | Discovered new exit (range 13) 922 | -9/Materials | Entered Storage 990 | -9/Storage | Garrison activated, responded to threat 999 | -9/Storage | Core integrity fell below 50% 1008 | -9/Storage | Core integrity fell below 20% 1010 | -9/Storage | Destroyed by G-34 Mercenary with Small Laser Last Messages --------------- R-06 Scavenger collects Aluminum Leg. Y-45 Defender destroyed. Imp. Aluminum Leg destroyed. R-06 Scavenger collects Hvy. Assault Rifle. Y-45 Defender calls for garrison reinforcements. ALERT: Activating Garrison Access S001. [Achievement: Troublemaker] Aluminum Leg destroyed. Sml. Laser destroyed. Imp. Aluminum Leg destroyed. R-06 Scavenger collects Lgt. Treads. Critical hit (Burn: +37). K-01 Serf collects debris. Acquired Imp. Ion Engine. Slammed into K-01 Serf. Destabilizing: System corrupted (+2). Acquired 6 matter. R-06 Scavenger collects Heat Sink. M-13 Machinist repairs Y-45 Defender. Imp. Ion Engine destroyed. Map ----- +----------------------------------------------------+ | | | | | | | | | | | | | | | | | | | | | | | | | | | | | | | | | ?????????????????????????????????????????????????? | | ?????????????????????????????????????????????????? | | ???????????#################################?????? | | ?????????? #?????? | | ?????????? w g #?????? | | ?????????? Ymg% #?????? | | ?????????????####+#####gY%##################?????? | | ??????????????????????# %[#??????????????????????? | | ??????????????????????# #??????????????????????? | | ??????????????????????# @#??????????????????????? | | ??????????????????????# #??????????????????????? | | ??????????????????????# +??????????????????????? | | ??????????????????????# #??????????????????????? | | ??????????????????????#r #??????????????????????? | | ??????????????????????# #??????????????????????? | | ??????????????????????# #??????????????????????? | | ?????????????????????? ??????????????????????? | | ?????????????????????? ??????????????????????? | | ?????????????????????+ ??????????????????????? | | ?????????????????????# ??????????????????????? | | ?????????????????????# ??????????????????????? | | ?????????????????????## #??????????????????????? | | ??????????????????????# ???????????????????????? | | ??????????????????????# ???????????????????????? | | ???????????????????????w ???????????????????????? | | ?????????????????????????????????????????????????? | | ?????????????????????????????????????????????????? | | ?????????????????????????????????????????????????? | | ?????????????????????????????????????????????????? | | ?????????????????????????????????????????????????? | | ?????????????????????????????????????????????????? | | ?????????????????????????????????????????????????? | | ?????????????????????????????????????????????????? | | ?????????????????????????????????????????????????? | +----------------------------------------------------+ Best States ------------- Heat Dissipation 35 Energy Generation 12 Energy Capacity 265 Matter Stores 300 Matter Capacity 300 Sight Range 16 Terrain Scan Density 10 Evasion (%) 55 Targeting Accuracy 12 Item Schematics ----------------- None Robot Schematics ------------------ None Fabricated ------------ Nothing Alien Tech Used ----------------- None Achievements -------------- Everything Is Under Control Troublemaker Uninvited Guest Challenges ------------ None Game ------ Seed GreatFieldDisintegrator Manual? 0 Play Time 00:23:00 Cumulative 1.5 hours Start 2023.06.27 @ 00:42:48 End 2023.06.27 @ 01:13:23 Sessions 1 Manual Loads 0 Difficulty Rogue Special Mode None Game No. 2 Rogue 1 Adventurer 1 Explorer 0 Win Type - Total 0 Types 0/0/0/0/0/0/0/0/0 Lore% 2 Gallery% 3 Achievement% 4 Wizard Run 0 Options --------- ASCII 0 Keyboard 0 Movement Arrows Keybinds 0 Fullscreen 1 Font 28/X11Bold Map View 72x54 Tactical HUD 0 Map Filters NONE Filters NONE Steam 1 RUN: d049ea50-18bf-4b39-89a1-ab00f099f047